Workbook

Sheet Income & Expense Worksheet
A4: 120 dolphin | B4: Property Address | E4: Current Rent Amount | F4: Bedroom | H4: Lease | J4: Pro Forma Rent
B5: Unit 1 | E5: 1750 | F5: 1 | H5: No | J5: 2200
B6: Unit 2 | E6: 1600 | F6: 2 | H6: No | J6: 2600
B7: Unit 3 | E7: 2000 | F7: 1 | H7: No | J7: 2200
B8: Unit 4 | E8: 1900 | F8: 1 | H8: No | J8: 2200
B9: Unit 5 | E9: 2250 | F9: 2 | H9: No | J9: 2600
B10: Unit 6 | E10: 2600 | F10: 2 | H10: Yes | J10: 2600
A17: Other Income | B17: 120 Dolphin
B18: Date | C18: Amount
A19: Laundry | B19: yearly | C19: 2000
A20: Storage
A21: Fees (application, etc.)
A22: Parking
A23: Other:
A25: Total: | C25: =SUM(C19:C24) -> 2000
A28: Monthly Expenses | B28: Jan. | C28: Feb. | D28: Mar. | E28: Apr. | F28: May | G28: Jun. | H28: Jul. | I28: Aug. | J28: Sept. | K28: Oct. | L28: Nov. | M28: Dec.
A29: Gas | B29: 204.13 | D29: 2081.24 | E29: 447.05 | F29: 0 | G29: 0 | H29: 0 | I29: 0 | J29: 0 | K29: 0 | L29: 0 | M29: 333.02
A30: Electricity | B30: 39.04 | C30: 34.25 | D30: 35.75 | E30: 32.07 | F30: 34.15 | G30: 34.43 | H30: 37.41 | I30: 37.09 | J30: 37.01 | K30: 35.68 | L30: 35.26 | M30: 41.37
A31: Water/Sewer | B31: 601.19 | C31: 501.64 | D31: 453.29 | E31: 533.09 | F31: 499.52 | G31: 629.05 | H31: 675.73 | I31: 853.4 | J31: 863.6 | K31: 631.25 | L31: 761.32 | M31: 527.95
A32: Unit 6/Elec. | B32: 72.53 | C32: 43.22 | D32: 81.06 | E32: 0 | F32: 0 | G32: 28.28 | H32: 84.07 | I32: 65.84 | J32: 62.56 | K32: 51.53 | L32: 32 | M32: 36.33
A33: Total: | B33: =SUM(B29:B32) -> 916.89 | C33: =SUM(C29:C32) -> 579.11 | D33: =SUM(D29:D32) -> 2651.34 | E33: =SUM(E29:E32) -> 1012.21 | F33: =SUM(F29:F32) -> 533.67 | G33: =SUM(G29:G32) -> 691.76 | H33: =SUM(H29:H32) -> 797.21 | I33: =SUM(I29:I32) -> 956.33 | J33: =SUM(J29:J32) -> 963.17 | K33: =SUM(K29:K32) -> 718.46 | L33: =SUM(L29:L32) -> 828.58 | M33: =SUM(M29:M32) -> 938.67
A36: Operating Expenses | B36: Jan. | C36: Feb. | D36: Mar. | E36: Apr. | F36: May | G36: Jun. | H36: Jul. | I36: Aug. | J36: Sept. | K36: Oct. | L36: Nov. | M36: Dec.
A37: Alarm | C37: 494 | I37: 624
A38: Telephone | B38: 70.94 | C38: 73.94 | D38: 73.94 | E38: 88.54 | F38: 73.94 | G38: 73.94 | H38: 73.94 | I38: 73.94 | J38: 73.94 | K38: 93.94 | L38: 93.94 | M38: 93.94
A39: Insurance | C39: 16887
B40: =SUM(B37:B39) -> 70.94 | C40: =SUM(C37:C39) -> 17454.94 | D40: =SUM(D37:D39) -> 73.94 | E40: =SUM(E37:E39) -> 88.54 | F40: =SUM(F37:F39) -> 73.94 | G40: =SUM(G37:G39) -> 73.94 | H40: =SUM(H37:H39) -> 73.94 | I40: =SUM(I37:I39) -> 697.94 | J40: =SUM(J37:J39) -> 73.94 | K40: =SUM(K37:K39) -> 93.94 | L40: =SUM(L37:L39) -> 93.94 | M40: =SUM(M37:M39) -> 93.94
A43: Other Expenses | B43: 120 Dolphin
B44: Date | C44: Amount | D44: Description
A45: Real Estate Taxes | B45: 2025 | C45: 11431
A46: Total: | C46: =SUM(C45:C45) -> 11431
